bitfinex-derivatives/quotes_ETHF0:USTF0_20250708
["timestamp","ask_amount","ask_price","bid_price","bid_amount"]
[1751973202391,3.70157,2579.3,2579.2,1.71662797]
[1751973209290,1.43777,2579.3,2579.2,1.71662797]
[1751973209494,5.14605,2579.6,2579.2,3.95256637]
[1751973209495,8.652,2579.6,2579.2,3.95256637]
[1751973209692,0.77537,2579.4,2579.3,5.66009601]
[1751973209997,1.43777,2579.4,2579.3,2.45229601]
[1751973210193,1.43777,2579.4,2579.3,1.3952]
[1751973210594,1.43777,2579.4,2579.3,0.736]
[1751973211296,0.77537,2579.3,2579.2,1.71629601]
[1751973211593,30.32037,2579.3,2579.2,1.71629601]
[1751973211793,31.09117,2579.3,2579.2,1.71629601]
[1751973211990,28.67837,2579.3,2579.2,4.49186836]
[1751973212196,28.67837,2579.3,2579.2,4.83706836]
[1751973212492,29.34077,2579.3,2579.2,5.06453872]
[1751973212690,28.67837,2579.3,2579.2,5.06453872]
[1751973212892,29.34077,2579.3,2579.2,5.83993872]
[1751973213198,29.34077,2579.3,2579.2,5.06453872]
[1751973213698,29.34077,2579.3,2579.2,5.83993872]
[1751973213895,29.34077,2579.3,2579.2,5.06453872]
[1751973214196,28.5654,2579.3,2579.2,6.84433872]
[1751973214788,0.77536,2579.4,2579.3,0.77537]
[1751973214999,28.66636,2579.4,2579.3,7.65125539]
[1751973215296,29.32876,2579.4,2579.3,8.65565539]
[1751973215901,29.32876,2579.4,2579.3,6.87588539]
[1751973216201,29.32876,2579.4,2579.2,1.71638539]
[1751973216202,0.77537,2579.3,2579.2,1.71638539]
[1751973216399,0.7754,2579.2,2579.1,4.06877637]
[1751973216599,28.6624,2579.2,2579.1,4.06877637]
[1751973216795,29.3248,2579.2,2579.1,4.72797637]
[1751973216990,29.3248,2579.2,2579.1,2.94816637]
[1751973217191,29.3248,2579.2,2579.1,3.72359637]
[1751973218404,29.3248,2579.2,2579.1,6.06279637]
[1751973219097,28.5494,2579.2,2579.1,6.06279637]
[1751973219401,28.5494,2579.2,2579.1,3.77383]
[1751973219903,27.887,2579.2,2579.1,3.77383]
[1751973220104,28.6624,2579.2,2579.1,3.77383]
[1751973221904,28.6624,2579.2,2579.1,2.11023]
[1751973222098,28.6624,2579.2,2579.1,3.77383]
[1751973223200,28.6624,2579.2,2579.1,7.20727956]
[1751973223504,29.3248,2579.2,2579.1,7.20727956]
[1751973223996,28.6624,2579.2,2579.1,3.77383]
[1751973224202,29.3248,2579.2,2579.1,6.20287956]
[1751973224403,29.3248,2579.2,2579.1,5.05922833]
[1751973224899,29.3248,2579.2,2579.1,2.94899833]
[1751973225702,30.3044,2579.2,2579.1,2.28979833]
[1751973226903,30.3044,2579.2,2579.1,3.06522833]
[1751973227707,30.3044,2579.2,2579.1,3.72442833]
[1751973227906,30.3044,2579.2,2579.1,2.94899833]
[1751973228204,30.3044,2579.2,2579.1,2.28979833]
[1751973228509,29.3248,2579.2,2579.1,3.72442833]
[1751973229106,29.3248,2579.2,2579.1,3.06522833]
[1751973229306,29.3248,2579.2,2579.1,3.72442833]
[1751973229908,28.5494,2579.2,2579.1,3.72442833]
[1751973230708,29.3248,2579.2,2579.1,3.72442833]
[1751973230910,29.3248,2579.2,2579.1,3.71912833]
[1751973231912,28.6624,2579.2,2579.1,2.28979833]
[1751973232411,29.3174,2579.2,2579.1,2.28979833]
[1751973232803,29.3174,2579.2,2579.1,2.94369833]
[1751973233410,29.3174,2579.2,2579.1,3.71912833]
[1751973233609,29.3174,2579.2,2579.1,2.94369833]
[1751973233810,29.3174,2579.2,2579.1,3.71912833]
[1751973234011,29.3174,2579.2,2579.1,3.06522833]
[1751973234312,29.3174,2579.2,2579.1,2.94369833]
[1751973234814,30.3148,2579.2,2579.1,2.94369833]
[1751973235013,30.3148,2579.2,2579.1,2.28979833]
[1751973236413,32.43117235,2579.2,2579.1,2.28979833]
[1751973237012,31.0578,2579.2,2579.1,2.28979833]
[1751973241322,0.77543,2579.1,2579.0,2.28979833]
[1751973241518,2.42783,2579.1,2579.0,2.28979833]
[1751973241722,3.78953,2579.1,2579.0,1.71834388]
[1751973242113,44.58953,2579.1,2579.0,1.71834388]
[1751973242422,44.58953,2579.1,2578.6,6.64124956]
[1751973242423,0.77546,2579.0,2578.9,1.71834388]
[1751973242722,61.52993235,2579.0,2578.9,1.71834388]
[1751973242921,0.77549,2578.9,2578.8,1.71834388]
[1751973243120,2.79219,2578.9,2578.8,1.71834388]
[1751973243320,3.78959,2578.9,2578.8,1.71834388]
[1751973244530,0.77549,2578.9,2578.8,2.37224388]
[1751973244727,10.05449,2578.9,2578.8,4.48861623]
[1751973244930,0.77555,2578.7,2578.6,3.90244235]
[1751973245131,58.58695936,2578.7,2578.6,4.55634235]
[1751973245331,60.03259964,2578.7,2578.6,4.55634235]
[1751973246820,57.93195936,2578.7,2578.6,4.55634235]
[1751973247034,55.608,2578.7,2578.6,4.55634235]
[1751973247531,56.38355,2578.7,2578.6,4.55634235]
[1751973247731,55.608,2578.7,2578.6,4.55634235]
[1751973248035,56.38355,2578.7,2578.6,4.55634235]
[1751973248533,55.608,2578.7,2578.6,4.55634235]
[1751973249233,54.9776547,2578.7,2578.6,4.6806988]
[1751973249433,54.61858316,2578.7,2578.6,4.6806988]
[1751973249629,27.79,2578.7,2578.6,4.6807088]
[1751973249834,0.7755,2578.9,2578.8,0.77552]
[1751973250034,28.5645,2578.9,2578.8,8.59406174]
[1751973250233,8.624,2579.0,2578.9,0.77549]
[1751973250437,0.77543,2579.2,2579.1,0.77539]
[1751973250631,28.56343,2579.2,2579.1,7.8883188]
[1751973251135,28.56343,2579.2,2579.1,10.96810896]
[1751973252127,28.55743,2579.2,2579.1,10.96810896]
[1751973252332,28.55743,2579.2,2579.1,7.5876188]
[1751973252736,28.55743,2579.2,2579.1,9.24886163]
[1751973252937,28.437,2579.2,2579.1,9.12766235]
[1751973253234,29.2124,2579.2,2579.1,4.63713]
[1751973253632,62.78687,2579.7,2579.1,9.27672294]
[1751973253836,0.77536,2579.4,2579.3,2.49090441]
[1751973254036,28.431,2579.4,2579.3,3.14480441]
[1751973254237,29.20634,2579.4,2579.3,3.14480441]
[1751973255231,0.655,2579.4,2579.3,3.14480441]
[1751973255430,56.6435,2579.7,2579.5,0.77528]
[1751973255638,37.05,2579.6,2579.5,1.42918]
[1751973256036,0.77534,2579.4,2579.3,1.71553441]
[1751973256233,0.655,2579.4,2579.3,3.14461111]
[1751973256735,0.655,2579.4,2579.3,3.71742059]
[1751973256941,1.43034,2579.4,2579.3,3.06352059]
[1751973257239,1.43034,2579.4,2579.3,3.71742059]
[1751973257437,0.655,2579.4,2579.3,2.368806]
[1751973257636,29.20034,2579.4,2579.3,2.368806]
[1751973257836,29.20034,2579.4,2579.3,3.144176]
[1751973258136,28.425,2579.4,2579.3,3.144176]
[1751973258337,27.77,2579.4,2579.3,2.490276]
[1751973258540,8.624,2579.6,2579.5,0.77531]
[1751973258740,37.16328,2579.6,2579.5,0.77531]
[1751973258936,37.81828,2579.6,2579.5,0.77531]
[1751973259145,37.16328,2579.6,2579.5,0.77531]
[1751973259440,37.81828,2579.6,2579.5,0.77531]
[1751973259647,37.16328,2579.6,2579.5,0.77531]
[1751973259847,37.81828,2579.6,2579.5,0.77531]
[1751973260136,37.16328,2579.6,2579.5,0.77531]
[1751973260340,37.85888,2579.6,2579.5,0.77531]
[1751973260741,0.6956,2579.6,2579.5,2.89168235]
[1751973260936,0.6956,2579.6,2579.5,4.18508235]
[1751973261144,0.6956,2579.6,2579.5,6.46946147]
[1751973261145,0.31751457,2579.6,2579.5,6.46946147]
[1751973261342,0.77511,2580.2,2580.1,0.77511]
[1751973261537,29.22171,2580.2,2580.1,0.77511]
[1751973261741,9.39809,2580.3,2580.2,0.7751]
[1751973261937,0.7751,2580.2,2580.1,1.5087]
[1751973262141,9.39809,2580.3,2580.2,0.7751]
[1751973262339,37.14709,2580.3,2580.2,0.7751]
[1751973262534,37.14709,2580.3,2580.2,3.51317235]
[1751973262737,37.84269,2580.3,2580.2,4.16107235]
[1751973262942,37.84269,2580.3,2580.2,2.0447]
[1751973263539,37.84269,2580.3,2580.2,2.8198]
[1751973263740,37.84269,2580.3,2580.2,3.8362]
[1751973264143,37.14709,2580.3,2580.2,2.1719]
[1751973264344,37.84269,2580.3,2580.2,3.8362]
[1751973264547,37.84269,2580.3,2580.2,1.6643]
[1751973264846,37.84269,2580.3,2580.2,0.6479]
[1751973267244,0.7751,2580.2,2580.1,0.7336]
[1751973267546,1.4707,2580.2,2580.1,1.3815]
[1751973267747,1.4707,2580.2,2580.1,0.7336]
[1751973268148,0.77516,2580.0,2579.9,3.98297]
[1751973268351,27.727,2580.0,2579.9,4.63087]
[1751973268544,28.4226,2580.0,2579.9,4.63087]
[1751973268744,28.4226,2580.0,2579.9,5.64727]
[1751973269552,29.19776,2580.0,2579.9,5.64727]
[1751973271557,29.19776,2580.0,2579.9,3.2078]
[1751973271754,0.77522,2579.8,2579.7,2.48298292]
[1751973271953,29.18382,2579.8,2579.7,1.42315]
[1751973272356,27.713,2579.8,2579.7,2.43955]
[1751973272748,28.48822,2579.8,2579.7,2.43955]
[1751973273551,29.18382,2579.8,2579.7,2.43955]
[1751973273751,0.77525,2579.7,2579.6,0.765]
[1751973273952,1.47085,2579.7,2579.6,1.4129]
[1751973274152,0.77525,2579.7,2579.6,1.4129]
[1751973274454,1.47085,2579.7,2579.6,2.18817]
[1751973274654,1.47085,2579.7,2579.6,0.6479]
[1751973275453,1.47085,2579.7,2579.6,1.42318]
[1751973276857,0.6956,2579.7,2579.6,1.42318]
[1751973277053,1.47085,2579.7,2579.6,1.42318]
[1751973278959,3.58722235,2579.7,2579.6,0.6479]
[1751973279357,28.48824,2579.8,2579.6,0.6479]
[1751973279552,0.6956,2579.7,2579.6,1.42318]
[1751973279754,28.48824,2579.8,2579.6,0.6479]
[1751973279950,0.6956,2579.7,2579.6,1.42318]
[1751973280155,27.688,2579.7,2579.6,1.42318]
[1751973280455,0.806,2580.0,2579.9,0.77519]
[1751973280653,36.9756,2580.0,2579.9,2.43949]
[1751973280854,0.7918,2580.3,2580.0,1.9379]
[1751973281059,36.278,2580.2,2580.1,1.79153]
[1751973281255,36.277,2580.2,2580.1,2.43943]
[1751973281661,36.9716,2580.2,2580.1,2.43943]
[1751973282061,36.276,2580.2,2580.1,2.43943]
[1751973282257,36.276,2580.2,2580.1,0.77513]
[1751973282464,36.276,2580.2,2580.1,2.43943]
[1751973283462,37.0511,2580.2,2580.1,2.43943]
[1751973283855,36.9716,2580.2,2580.1,2.43943]
[1751973284758,37.7467,2580.2,2580.1,2.43943]
[1751973285063,37.7467,2580.2,2580.1,1.42303]
[1751973285360,37.7467,2580.2,2580.1,3.13076292]
[1751973285550,8.592,2580.4,2580.3,0.77505]
[1751973285753,8.592,2580.4,2580.3,7.76352235]
[1751973286151,0.77492,2580.9,2580.8,0.77489]
[1751973286462,29.13952,2580.9,2580.8,1.42279]
[1751973287165,29.13752,2580.9,2580.8,1.42279]
[1751973287359,29.13752,2580.9,2580.8,0.6479]
[1751973288661,0.77492,2580.8,2580.7,0.77493]
[1751973288860,0.77492,2580.8,2580.7,1.42283]
[1751973289155,8.592,2581.0,2580.9,0.77489]
[1751973289358,8.592,2581.0,2580.9,5.64699]
[1751973289558,36.25,2581.0,2580.9,5.64699]
[1751973289759,36.9456,2581.0,2580.9,5.64699]
[1751973290965,0.6956,2581.0,2580.9,5.64699]
[1751973291163,28.43086,2581.0,2580.9,7.00169]
[1751973291467,27.656,2581.0,2580.9,7.00169]
[1751973291667,8.591,2581.2,2580.9,4.5625]
[1751973291857,28.42585,2581.1,2581.0,0.77483]
[1751973292063,29.06155,2581.1,2581.0,1.47043]
[1751973292262,29.06155,2581.1,2580.9,5.5789]
[1751973292263,0.77486,2581.0,2580.9,6.35376]
[1751973292462,1.41056,2581.0,2580.9,3.2078]
[1751973292774,0.77489,2580.9,2580.8,2.48263292]
[1751973293067,28.41989,2580.9,2580.8,3.17823292]
[1751973293362,28.41989,2580.9,2580.8,1.4705]
[1751973294470,28.41989,2580.9,2580.8,3.9034]
[1751973294672,28.41989,2580.9,2580.8,0.6956]
[1751973294867,0.77492,2580.8,2580.7,1.70773292]
[1751973295266,0.77492,2580.8,2580.7,2.40333292]
[1751973295467,0.77492,2580.8,2580.7,0.6956]
[1751973296167,0.77495,2580.7,2580.6,3.20990292]
[1751973296468,28.40895,2580.7,2580.6,3.90550292]
[1751973296777,28.40895,2580.7,2580.6,1.70773292]
[1751973297071,0.77498,2580.6,2580.5,1.70773292]
[1751973297269,4.30965235,2580.6,2580.5,1.70773292]
[1751973299674,0.77501,2580.5,2580.4,2.48275292]
[1751973299970,0.77501,2580.5,2580.4,2.40333292]
[1751973299971,29.03571,2580.5,2580.4,2.40333292]
[1751973300266,29.03571,2580.5,2580.3,2.48278292]
[1751973300267,0.77504,2580.4,2580.3,2.48278292]
[1751973300672,1.41074,2580.4,2580.3,2.50765]
[1751973300872,28.40002,2580.5,2580.4,0.77504]
[1751973301072,28.2607,2580.5,2580.4,1.47064]
[1751973301371,4.05339235,2581.2,2580.4,6.87797]
[1751973301572,3.48593904,2581.7,2580.9,2.11637235]
[1751973301573,3.2078,2581.6,2580.9,2.11637235]
[1751973301872,8.561,2582.0,2581.9,0.77459]
[1751973302174,3.2078,2582.2,2582.1,0.77453]
[1751973302369,68.64038904,2582.4,2582.2,0.77448]
[1751973302567,29.02618,2582.3,2582.2,0.6956]
[1751973302971,1.41018,2582.3,2582.2,0.6956]
[1751973303174,38.88898,2582.3,2582.2,0.6956]
[1751973303473,0.77465,2581.7,2581.6,3.2078]
[1751973303771,0.77468,2581.6,2581.5,1.70773292]
[1751973303976,1.3028,2581.6,2581.3,3.2078]
[1751973304170,2.89111235,2581.4,2581.3,3.2078]
[1751973304371,30.50311235,2581.4,2581.3,3.2078]
[1751973304872,28.38674,2581.4,2581.3,3.2078]
[1751973305177,27.612,2581.4,2581.3,4.67817]
[1751973305365,27.612,2581.4,2581.3,3.9034]
[1751973305565,27.612,2581.4,2581.3,4.67817]
[1751973307272,1.3028,2581.6,2581.3,3.9034]
[1751973307576,27.598,2581.5,2581.4,0.77474]
[1751973307778,0.77462,2581.8,2581.7,0.77463]
[1751973307975,29.00732,2581.8,2581.7,0.77463]
[1751973308172,3.2078,2582.2,2581.6,3.2078]
[1751973308369,36.92955,2582.1,2581.9,0.77458]
[1751973308569,1.41026,2582.0,2581.9,0.77458]
[1751973308775,0.6357,2582.0,2581.9,0.77458]
[1751973308966,3.98232,2582.2,2582.0,0.77456]
[1751973309170,9.96923,2582.1,2581.9,1.47017]
[1751973309370,27.593,2582.0,2581.9,1.47017]
[1751973309572,9.1947,2582.1,2582.0,0.77456]
[1751973309871,27.592,2582.1,2581.9,3.9034]
[1751973310071,28.2277,2582.1,2581.9,4.67797]
[1751973310573,29.00223,2582.1,2582.0,0.77456]
[1751973310775,0.77456,2582.0,2581.9,4.67796]
[1751973311176,28.36654,2582.1,2582.0,0.77456]
[1751973311678,0.77456,2582.0,2581.9,3.2078]
[1751973311875,28.2277,2582.1,2581.7,1.037]
[1751973312072,1.41026,2582.0,2581.9,0.6956]
[1751973312266,27.592,2582.1,2581.9,0.6956]
[1751973312472,1.41026,2582.0,2581.9,0.6956]
[1751973312672,0.7746,2581.9,2581.8,0.77462]
[1751973312873,0.77457,2582.0,2581.9,0.77459]
[1751973313072,9.33254,2582.1,2582.0,0.77456]
[1751973313275,36.91454,2582.1,2582.0,0.6956]
[1751973313578,37.55024,2582.1,2582.0,0.6956]
[1751973315075,1.93597,2582.6,2582.0,1.7326]
[1751973315076,3.2078,2582.6,2582.0,1.7326]
[1751973315382,1.93558,2583.1,2582.6,0.77436]
[1751973315581,1.93558,2583.1,2582.5,0.6956]
[1751973315582,0.77438,2582.6,2582.5,0.6956]
[1751973315879,28.34738,2582.6,2582.5,0.6956]
[1751973316074,28.34738,2582.6,2582.5,1.47001]
[1751973316280,43.73985,2583.2,2582.7,0.77433]
[1751973316478,1.41002,2582.8,2582.7,0.77433]
[1751973316682,43.1889,2583.2,2582.9,0.77428]
[1751973316979,1.40996,2583.0,2582.7,3.2078]
[1751973317174,0.77432,2582.8,2582.7,3.2078]
[1751973317380,36.89832,2582.8,2582.7,3.2078]
[1751973317578,0.77435,2582.7,2582.6,0.7665]
[1751973318480,0.77438,2582.6,2582.5,0.6956]
[1751973318778,0.77441,2582.5,2582.4,3.2078]
[1751973318982,0.77444,2582.4,2582.3,0.7665]
[1751973319182,0.7745,2582.2,2582.1,2.74066953]
[1751973319383,28.3345,2582.2,2582.1,1.7326]
[1751973320286,28.3345,2582.2,2582.1,0.6956]
[1751973320785,38.7455,2582.2,2581.7,4.91146953]
[1751973321084,0.77465,2581.7,2581.6,1.70366953]
[1751973321284,0.77465,2581.7,2581.5,2.47956953]
[1751973321285,0.77468,2581.6,2581.5,2.47956953]
[1751973321583,1.46788,2581.6,2581.5,1.4139]
[1751973321782,0.77468,2581.6,2581.5,1.4139]
[1751973321972,0.77468,2581.6,2581.5,0.7759]
[1751973322379,0.77468,2581.6,2581.5,1.4139]
[1751973322773,1.46788,2581.6,2581.5,1.4139]
[1751973323178,0.77471,2581.5,2581.4,3.2078]
[1751973323380,1.46791,2581.5,2581.4,3.2078]
[1751973323683,0.7748,2581.2,2581.1,5.3011]
[1751973323884,28.3258,2581.2,2581.1,6.71393]
[1751973324079,28.3258,2581.2,2581.1,5.9391]
[1751973324682,29.019,2581.2,2581.1,5.9391]
[1751973324879,28.3258,2581.2,2581.1,5.9391]
[1751973325183,29.019,2581.2,2581.1,5.9391]
[1751973325380,29.019,2581.2,2581.1,6.71393]
[1751973325875,29.019,2581.2,2581.1,7.74583]
[1751973326383,29.019,2581.2,2581.1,6.971]
[1751973326584,29.019,2581.2,2581.1,4.6526]
[1751973326880,0.77492,2580.8,2580.7,2.0772]
[1751973327078,29.01312,2580.8,2580.7,2.7152]
[1751973327281,29.01312,2580.8,2580.7,1.4253]
[1751973327479,0.77498,2580.6,2580.5,1.70366953]
[1751973327685,0.77507,2580.3,2580.2,0.7873]
[1751973327879,29.01427,2580.3,2580.2,1.4253]
[1751973328182,1.93776,2580.2,2579.7,2.283665]
[1751973328384,0.77537,2579.3,2579.2,0.8085075]
[1751973328587,0.77537,2579.3,2578.2,1.0319]
[1751973328588,4.39710652,2579.2,2578.2,4.2397]
[1751973328884,0.77564,2578.4,2578.2,6.62693453]
[1751973329082,0.77564,2578.4,2578.3,1.0319]
[1751973329585,0.77564,2578.4,2578.3,3.41913453]
[1751973330177,27.544,2578.5,2578.3,3.41913453]
[1751973330376,28.31963,2578.5,2578.3,3.41913453]
[1751973331086,27.544,2578.5,2578.4,1.0319]
[1751973331785,28.31961,2578.5,2578.4,1.0319]
[1751973331994,28.31961,2578.5,2578.3,1.3715]
[1751973332187,0.77564,2578.4,2578.3,4.79063453]
[1751973332389,0.77564,2578.4,2578.3,2.38723453]
[1751973332579,0.7757,2578.2,2578.0,1.0319]
[1751973332784,0.7757,2578.2,2578.1,1.3881]
[1751973332986,27.548,2578.2,2578.1,4.80723453]
[1751973333388,27.548,2578.2,2578.1,8.79076453]
[1751973333784,27.548,2578.2,2578.1,8.01503453]
[1751973333985,27.548,2578.2,2578.1,8.79076453]
[1751973334291,27.548,2578.2,2578.1,4.80723453]
[1751973334492,27.548,2578.2,2578.1,5.58296453]
[1751973334884,27.548,2578.2,2578.1,6.22096453]
[1751973335086,27.548,2578.2,2578.1,9.42876453]
[1751973339191,28.815,2578.2,2578.1,6.23303453]
[1751973339385,28.815,2578.2,2578.1,3.02523453]
[1751973339590,28.3237,2578.2,2578.1,3.02523453]
[1751973339793,28.3237,2578.2,2578.1,2.38723453]
[1751973339992,28.3237,2578.2,2578.1,3.80096453]
[1751973340193,28.3237,2578.2,2578.1,0.638]
[1751973340385,28.815,2578.2,2578.1,0.638]
[1751973340586,28.3237,2578.2,2578.1,1.41373]
[1751973342397,27.548,2578.2,2577.8,3.2078]
[1751973342597,0.77579,2577.9,2577.8,6.37083453]
[1751973342799,27.549,2577.9,2577.8,4.62162]
[1751973343595,28.32479,2577.9,2577.8,4.62162]
[1751973344191,27.549,2577.9,2577.8,4.62162]
[1751973345698,28.32479,2577.9,2577.8,3.8458]
[1751973345991,0.77582,2577.8,2577.7,1.0319]
[1751973346196,0.77582,2577.8,2577.7,1.6699]
[1751973346493,0.77588,2577.6,2577.5,3.2078]
[1751973346688,55.87188,2577.6,2577.5,4.62171]
[1751973347098,55.87188,2577.6,2577.5,3.8458]
[1751973347299,55.87188,2577.6,2577.5,4.62171]
[1751973347695,55.87188,2577.6,2577.5,3.8458]
[1751973348095,55.096,2577.6,2577.5,4.62171]
[1751973348495,55.87188,2577.6,2577.5,4.62171]
[1751973348899,55.096,2577.6,2577.5,4.62171]
[1751973349495,55.096,2577.6,2577.5,5.65361]
[1751973350299,55.096,2577.6,2577.5,4.77066642]
[1751973350694,55.096,2577.6,2577.5,2.44581]
[1751973351598,3.2078,2577.9,2577.8,0.77582]
[1751973351901,31.52759,2577.9,2577.8,0.77582]
[1751973352099,31.52759,2577.9,2577.8,1.80772]
[1751973352302,39.2968,2577.9,2577.8,0.77582]
[1751973352498,40.07259,2577.9,2577.8,2.43692]
[1751973353702,3.98359,2577.9,2577.8,2.43692]
[1751973353902,40.07259,2577.9,2577.8,2.43692]
[1751973354400,9.32379,2577.9,2577.8,2.43692]
[1751973354704,36.087,2577.9,2577.8,4.82415453]
[1751973355203,36.86279,2577.9,2577.8,4.82415453]
[1751973355404,36.087,2577.9,2577.8,4.82415453]
[1751973356005,55.862,2578.1,2577.8,4.82415453]
[1751973356006,55.862,2578.1,2578.0,0.77576]
[1751973356301,55.862,2578.1,2578.0,1.6611]
[1751973356302,94.28917065,2578.1,2578.0,1.6611]
[1751973357500,94.28917065,2578.1,2578.0,2.43686]
[1751973358302,97.77510969,2578.1,2578.0,2.43686]
[1751973358707,102.14653969,2578.1,2577.7,0.77584]
[1751973358898,3.09564152,2577.8,2577.7,0.6353]
[1751973359103,32.19408217,2577.8,2577.7,0.6353]
[1751973359399,31.41826217,2577.8,2577.3,3.9793]
[1751973359714,3.88655903,2577.7,2577.6,0.77587]
[1751973359905,3.88655903,2577.7,2577.6,1.41117]
[1751973360211,3.88655903,2577.7,2577.6,2.43697]
[1751973360603,1.56644065,2577.7,2577.6,2.43697]
[1751973360804,10.11444065,2577.7,2577.6,2.43697]
[1751973361107,13.21040903,2577.7,2577.6,1.6611]
[1751973361408,12.05411065,2577.7,2577.3,5.0051]
[1751973361605,0.77603,2577.1,2577.0,4.2336]
[1751973361906,56.62444065,2577.1,2577.0,3.98385]
[1751973362100,56.62444065,2577.1,2577.0,8.03218453]
[1751973362302,56.62444065,2577.1,2577.0,6.37108453]
[1751973362503,56.62444065,2577.1,2577.0,8.03218453]
[1751973363100,56.62444065,2577.1,2577.0,12.42929105]
[1751973363904,56.62444065,2577.1,2577.0,8.03218453]
[1751973364607,57.40047065,2577.1,2577.0,8.03218453]
[1751973364804,57.40047065,2577.1,2577.0,7.25613453]
[1751973365200,57.40047065,2577.1,2577.0,6.23033453]
[1751973365402,60.60827065,2577.1,2577.0,0.6353]
[1751973365598,64.09273739,2577.1,2576.5,1.0258]
[1751973365802,0.77612,2576.8,2576.7,0.6353]
[1751973365999,65.92256065,2576.8,2576.7,0.6353]
[1751973366702,67.46681739,2576.8,2576.5,1.0258]
[1751973366901,0.77618,2576.6,2576.5,1.6611]
[1751973367101,57.38762065,2576.6,2576.5,1.6611]
[1751973367302,57.38762065,2576.6,2576.5,2.43731]
[1751973367703,56.61144065,2576.6,2576.5,2.43731]
[1751973368408,57.38762065,2576.6,2576.5,2.43731]
[1751973368703,56.61144065,2576.6,2576.5,2.43731]
[1751973368909,57.38762065,2576.6,2576.5,2.43731]
[1751973369208,0.77621,2576.5,2576.4,3.2078]
[1751973369502,4.66302739,2576.5,2576.4,0.6353]
[1751973369803,2.34265065,2576.5,2576.4,1.41154]
[1751973370004,2.34265065,2576.5,2576.4,0.6353]
[1751973370199,2.34265065,2576.5,2576.4,1.41154]
[1751973370200,4.66302739,2576.5,2576.4,1.41154]
[1751973370401,3.88681739,2576.5,2576.4,3.79877453]
[1751973370605,1.56644065,2576.5,2576.4,3.79877453]
[1751973370801,1.56644065,2576.5,2576.4,4.82457453]
[1751973371200,1.56644065,2576.5,2576.4,5.54457453]
[1751973372310,1.56644065,2576.5,2576.4,3.88347453]
[1751973372509,2.34265065,2576.5,2576.4,5.54457453]
[1751973373009,29.86165065,2576.5,2576.4,5.54457453]
[1751973373209,29.08544065,2576.5,2576.4,5.54457453]
[1751973373810,1.56644065,2576.5,2576.4,5.54457453]
[1751973374010,29.08344065,2576.5,2576.4,5.54457453]
[1751973376913,2.32037674,2576.9,2576.8,0.77612]
[1751973377114,31.40990275,2576.9,2576.8,2.43722]
[1751973377315,1.57452601,2576.9,2576.8,2.43722]
[1751973377513,29.86363601,2576.9,2576.8,5.64502]
[1751973377714,2.35063601,2576.9,2576.8,5.64502]
[1751973378016,29.86263601,2576.9,2576.8,5.64502]
[1751973379314,29.86263601,2576.9,2576.8,8.03225453]
[1751973379521,2.35063601,2576.9,2576.8,8.03225453]
[1751973379718,29.85863601,2576.9,2576.8,8.03225453]
[1751973379919,29.85861601,2576.9,2576.8,8.03225453]
[1751973380816,29.08252601,2576.9,2576.8,8.03225453]
[1751973381614,1.57452601,2576.9,2576.8,8.03225453]
[1751973381915,27.504,2576.9,2576.8,6.37115453]
[1751973382216,27.504,2576.9,2576.8,8.06715453]
[1751973382422,27.504,2576.9,2576.8,8.02065453]
[1751973383925,0.77606,2577.0,2576.9,0.77609]
[1751973384226,28.28006,2577.0,2576.9,2.42559]
[1751973384419,28.28006,2577.0,2576.9,4.81282453]
[1751973385727,27.504,2577.0,2576.9,4.81282453]
[1751973386025,28.28006,2577.0,2576.9,4.81282453]
[1751973386223,27.504,2577.0,2576.9,4.81282453]
[1751973386926,28.28006,2577.0,2576.9,4.81282453]
[1751973387121,28.28006,2577.0,2576.9,3.83352453]
[1751973387329,28.28006,2577.0,2576.9,0.77609]
[1751973387533,29.60188,2577.0,2576.9,1.44629]
[1751973387819,28.28006,2577.0,2576.9,1.44629]
[1751973388028,28.28006,2577.0,2576.9,2.42559]
[1751973388617,56.66303,2577.1,2577.0,0.77606]
[1751973388821,0.77606,2577.0,2576.9,0.77607]
[1751973389129,0.77606,2577.0,2576.9,1.44629]
[1751973389427,2.09286,2577.0,2576.9,0.77609]
[1751973389823,0.77609,2576.9,2576.8,3.98392]
[1751973390128,28.26409,2576.9,2576.8,7.04135453]
[1751973390627,28.26409,2576.9,2576.8,8.02065453]
[1751973390830,28.26409,2576.9,2576.8,5.63342]
[1751973391024,28.26409,2576.9,2576.8,0.6702]
[1751973391225,0.77618,2576.7,2576.6,0.77616]
[1751973391525,55.74718,2576.7,2576.6,3.83359453]
[1751973391922,0.77618,2576.6,2576.5,3.2078]
[1751973392123,0.77618,2576.6,2576.5,4.65421]
[1751973392321,0.77618,2576.6,2576.5,3.98401]
[1751973392725,0.77618,2576.6,2576.5,4.65421]
[1751973392923,0.77618,2576.6,2576.5,3.878]
[1751973393125,0.77618,2576.6,2576.5,4.65421]
[1751973393324,0.77618,2576.6,2576.5,3.878]
[1751973393931,0.77618,2576.6,2576.5,4.65421]
[1751973394730,0.77618,2576.6,2576.5,0.6702]
[1751973395131,2.18108,2576.6,2576.5,0.6702]
[1751973395333,0.77627,2576.3,2576.2,0.77627]
[1751973395627,54.958,2576.3,2576.2,4.81300453]
[1751973396726,55.73427,2576.3,2576.2,4.81300453]
[1751973397129,54.958,2576.3,2576.2,4.81300453]
[1751973397329,55.73427,2576.3,2576.2,4.81300453]
[1751973400135,55.73427,2576.3,2576.2,8.02080453]
[1751973400524,54.958,2576.3,2576.2,8.02080453]
[1751973400836,54.958,2576.3,2576.2,12.43404819]
[1751973401135,9.29515,2576.8,2576.7,0.77612]
[1751973401330,37.56306143,2576.8,2576.7,1.44632]
[1751973401537,37.56306143,2576.8,2576.7,2.42562]
[1751973401731,35.989,2576.8,2576.7,2.42562]